fUSD/lending_fUSD_20260622
["ID","MTS","AMOUNT","RATE_DAILY","PERIOD"]
[426087987,1782141040000,-190.70002079,0.0002,2]
[426087990,1782141040000,-190.70002079,0.0002,2]
[426087991,1782141040000,-501.0,0.0002,2]
[426087988,1782141040000,-190.70002079,0.0002,2]
[426087974,1782141040000,-3024.77458829,0.00019999,2]
[426087983,1782141040000,-299.999996,0.0002,2]
[426087965,1782141040000,-478.0,0.00019726,2]
[426087955,1782141040000,-164.29860884,0.00019496,2]
[426087970,1782141040000,-1279.283,0.00019962,2]
[426087945,1782141040000,-1125.00423533,0.00019178,2]
[426087946,1782141040000,-1307.19185621,0.000193,2]
[426087947,1782141040000,-10210.7323249,0.000193,2]
[426087948,1782141040000,-558.41,0.000193,2]
[426087953,1782141040000,-429.70900624,0.00019446,2]
[426087949,1782141040000,-181.85,0.00019355,7]
[426087952,1782141040000,-5715.0,0.00019436,5]
[426087950,1782141040000,-265616.47475379,0.000194,2]
[426087951,1782141040000,-500.0,0.0001941,2]
[426087956,1782141040000,-1307.19185621,0.000195,2]
[426087954,1782141040000,-1865.36488656,0.00019486,2]
[426087998,1782141040000,-2000.0,0.0002,7]
[426087957,1782141040000,-10210.7323249,0.000195,2]
[426087958,1782141040000,-3620.0,0.00019509,2]
[426087959,1782141040000,-7670.4516026,0.00019548,2]
[426087962,1782141040000,-202.4,0.00019658,2]
[426087960,1782141040000,-344535.9729006,0.00019548,2]
[426087961,1782141040000,-14457.9369396,0.00019548,2]
[426087963,1782141040000,-1307.19185621,0.000197,2]
[426087971,1782141040000,-1229.25,0.00019962,2]
[426087966,1782141040000,-200.0,0.000199,7]
[426087964,1782141040000,-201.0,0.00019726,2]
[426087973,1782141040000,-216.0,0.00019962,2]
[426087969,1782141040000,-388.0,0.00019962,2]
[426087996,1782141040000,-1170.0,0.0002,2]
[426087981,1782141040000,-163.94697071,0.0002,14]
[426087997,1782141040000,-1288.0,0.0002,2]
[426088029,1782141040000,-8882.6885148,0.00020034,2]
[426088028,1782141040000,-151.0,0.00020034,2]
[426088027,1782141040000,-1377.42282658,0.00020034,2]
[426088033,1782141040000,-194.72792766,0.00020034,2]
[426088043,1782141040000,-194.72792766,0.00020034,2]
[426088032,1782141040000,-151.0,0.00020034,2]
[426088037,1782141040000,-1934.38338736,0.00020034,2]
[426088034,1782141040000,-1481.2378076,0.00020034,2]
[426088036,1782141040000,-151.0,0.00020034,2]
[426088035,1782141040000,-152.0,0.00020034,2]
[426088039,1782141040000,-1536.04360648,0.00020034,2]
[426088031,1782141040000,-157.20749069,0.00020034,2]
[426088040,1782141040000,-194.72792766,0.00020034,2]
[426088042,1782141040000,-152.0,0.00020034,2]
[426088044,1782141040000,-1592.87721992,0.00020034,2]
[426088046,1782141040000,-670.58624095,0.00020034,2]
[426088050,1782141040000,-1651.81367706,0.00020034,2]
[426088049,1782141040000,-152.0,0.00020034,2]
[426088048,1782141040000,-151.0,0.00020034,2]
[426088047,1782141040000,-151.0,0.00020034,2]
[426088045,1782141040000,-500.0,0.00020034,2]
[426088052,1782141040000,-906.04900202,0.00020034,2]
[426088002,1782141040000,-540.50544414,0.00020034,2]
[426088051,1782141040000,-151.0,0.00020034,2]
[426088041,1782141040000,-151.0,0.00020034,2]
[426088026,1782141040000,-1328.27659266,0.00020034,2]
[426088038,1782141040000,-500.0,0.00020034,2]
[426088025,1782141040000,-151.0,0.00020034,2]
[426087999,1782141040000,-158.0,0.0002,2]
[426088000,1782141040000,-1664.17,0.0002,2]
[426088030,1782141040000,-1428.38747117,0.00020034,2]
[426088005,1782141040000,-151.0,0.00020034,2]
[426088001,1782141040000,-500.0,0.00020034,2]
[426088007,1782141040000,-412.43236871,0.00020034,2]
[426088006,1782141040000,-194.72792766,0.00020034,2]
[426088003,1782141040000,-155.54611384,0.00020034,2]
[426088009,1782141040000,-1068.11,0.00020034,2]
[426088010,1782141040000,-151.0,0.00020034,2]
[426088011,1782141040000,-1107.63007,0.00020034,2]
[426088015,1782141040000,-151.0,0.00020034,2]
[426088004,1782141040000,-1030.0,0.00020034,2]
[426088013,1782141040000,-1148.61238259,0.00020034,2]
[426088024,1782141040000,-151.0,0.00020034,2]
[426088008,1782141040000,-158.27328414,0.00020034,2]
[426088014,1782141040000,-151.0,0.00020034,2]
[426088016,1782141040000,-1191.11104074,0.00020034,2]
[426088017,1782141040000,-174.61919141,0.00020034,2]
[426088018,1782141040000,-1235.18214925,0.00020034,2]
[426088019,1782141040000,-151.0,0.00020034,2]
[426088012,1782141040000,-200.0,0.00020034,2]
[426088023,1782141040000,-578.20924308,0.00020034,2]
[426088021,1782141040000,-1280.88388877,0.00020034,2]
[426088090,1782141041000,-151.0,0.00020034,2]
[426088104,1782141041000,-500.0,0.00020034,2]
[426088094,1782141041000,-152.0,0.00020034,2]
[426088102,1782141041000,-500.0,0.00020034,2]
[426088101,1782141041000,-151.0,0.00020034,2]
[426088086,1782141041000,-152.0,0.00020034,2]
[426088089,1782141041000,-151.0,0.00020034,2]
[426088085,1782141041000,-151.0,0.00020034,2]
[426088084,1782141041000,-151.0,0.00020034,2]
[426088095,1782141041000,-151.0,0.00020034,2]
[426088088,1782141041000,-500.0,0.00020034,2]
[426088087,1782141041000,-500.0,0.00020034,2]
[426088096,1782141041000,-500.0,0.00020034,2]
[426088112,1782141041000,-500.0,0.00020034,2]
[426088099,1782141041000,-152.0,0.00020034,2]
[426088103,1782141041000,-152.0,0.00020034,2]
[426088098,1782141041000,-500.0,0.00020034,2]
[426088106,1782141041000,-151.0,0.00020034,2]
[426088111,1782141041000,-151.0,0.00020034,2]
[426088105,1782141041000,-151.0,0.00020034,2]
[426088113,1782141041000,-500.0,0.00020034,2]
[426088114,1782141041000,-151.0,0.00020034,2]
[426088117,1782141041000,-500.0,0.00020034,2]
[426088116,1782141041000,-151.0,0.00020034,2]
[426088082,1782141041000,-500.0,0.00020034,2]
[426088107,1782141041000,-500.0,0.00020034,2]
[426088097,1782141041000,-151.0,0.00020034,2]
[426088093,1782141041000,-151.0,0.00020034,2]
[426088068,1782141041000,-500.0,0.00020034,2]
[426088091,1782141041000,-500.0,0.00020034,2]
[426088115,1782141041000,-500.0,0.00020034,2]
[426088054,1782141041000,-151.0,0.00020034,2]
[426088053,1782141041000,-500.0,0.00020034,2]
[426088066,1782141041000,-151.0,0.00020034,2]
[426088055,1782141041000,-1712.93078311,0.00020034,2]
[426088060,1782141041000,-500.0,0.00020034,2]
[426088062,1782141041000,-151.0,0.00020034,2]
[426088067,1782141041000,-1842.0326633,0.00020034,2]
[426088064,1782141041000,-500.0,0.00020034,2]
[426088063,1782141041000,-1776.30922209,0.00020034,2]
[426088056,1782141041000,-152.0,0.00020034,2]
[426088069,1782141041000,-151.0,0.00020034,2]
[426088058,1782141041000,-151.0,0.00020034,2]
[426088065,1782141041000,-152.0,0.00020034,2]
[426088070,1782141041000,-152.0,0.00020034,2]
[426088072,1782141041000,-1910.18787185,0.00020034,2]
[426088074,1782141041000,-500.0,0.00020034,2]
[426088076,1782141041000,-1980.8648231,0.00020034,2]
[426088073,1782141041000,-151.0,0.00020034,2]
[426088075,1782141041000,-151.0,0.00020034,2]
[426088077,1782141041000,-152.0,0.00020034,2]
[426088079,1782141041000,-2054.15682156,0.00020034,2]
[426088080,1782141041000,-152.0,0.00020034,2]
[426088081,1782141041000,-151.0,0.00020034,2]
[426088078,1782141041000,-500.0,0.00020034,2]
[426088071,1782141041000,-500.0,0.00020034,2]
[426088083,1782141041000,-500.0,0.00020034,2]
[426088092,1782141041000,-500.0,0.00020034,2]
[426088108,1782141041000,-152.0,0.00020034,2]
[426088100,1782141041000,-151.0,0.00020034,2]
[426088110,1782141041000,-151.0,0.00020034,2]
[426088144,1782141041000,-151.0,0.00020474,2]
[426088151,1782141041000,-151.0,0.00020582,2]
[426088154,1782141041000,-151.0,0.00020582,2]
[426088147,1782141041000,-478.0,0.00020547,2]
[426088149,1782141041000,-158.27328414,0.00020582,2]
[426088152,1782141041000,-200.0,0.00020582,2]
[426088155,1782141041000,-327.98278615,0.00020582,2]
[426088158,1782141041000,-2005.9555727,0.00020582,2]
[426088167,1782141041000,-785.0,0.00020606,2]
[426088159,1782141041000,-201.93286098,0.00020582,2]
[426088160,1782141041000,-201.93286098,0.00020582,2]
[426088156,1782141041000,-157.20749069,0.00020582,2]
[426088157,1782141041000,-217.67800491,0.00020582,2]
[426088164,1782141041000,-151.0,0.00020584,2]
[426088166,1782141041000,-752.4937536,0.000206,2]
[426088163,1782141041000,-540.50544414,0.00020584,2]
[426088161,1782141041000,-151.0,0.00020582,2]
[426088162,1782141041000,-906.04900202,0.00020582,2]
[426088165,1782141041000,-154.89,0.00020596,2]
[426088168,1782141041000,-501.0,0.00020619,2]
[426088171,1782141041000,-540.5054443,0.00020694,2]
[426088170,1782141041000,-151.0,0.00020639,2]
[426088173,1782141041000,-601.05380042,0.000207,2]
[426088169,1782141041000,-540.50544414,0.00020639,2]
[426088172,1782141041000,-151.0,0.00020694,2]
[426088174,1782141041000,-200.0,0.00020745,2]
[426088109,1782141041000,-500.0,0.00020034,2]
[426088148,1782141041000,-412.43236871,0.00020582,2]
[426088150,1782141041000,-218.80238326,0.00020582,2]
[426088175,1782141041000,-752.4937536,0.000208,2]
[426088145,1782141041000,-540.50544414,0.00020529,2]
[426088153,1782141041000,-181.08010149,0.00020582,2]
[426088121,1782141041000,-540.50544414,0.00020144,2]
[426088120,1782141041000,-151.0,0.00020089,2]
[426088123,1782141041000,-151.0,0.00020145,2]
[426088122,1782141041000,-151.0,0.00020144,2]
[426088129,1782141041000,-8380.22662504,0.0002026,2]
[426088128,1782141041000,-151.0,0.00020254,2]
[426088126,1782141041000,-752.4937536,0.000202,2]
[426088130,1782141041000,-821.26435144,0.00020274,2]
[426088124,1782141041000,-540.50544414,0.00020199,2]
[426088119,1782141041000,-540.50544414,0.00020089,2]
[426088125,1782141041000,-151.0,0.00020199,2]
[426088127,1782141041000,-540.50544414,0.00020254,2]
[426088118,1782141041000,-500.0,0.00020034,2]
[426088142,1782141041000,-151.0,0.00020419,2]
[426088132,1782141041000,-151.0,0.00020308,2]
[426088143,1782141041000,-540.50544414,0.00020474,2]
[426088139,1782141041000,-714.6,0.00020381,2]
[426088140,1782141041000,-752.4937536,0.000204,2]
[426088141,1782141041000,-540.50544414,0.00020419,2]
[426088138,1782141041000,-151.0,0.00020364,2]
[426088137,1782141041000,-540.50544414,0.00020364,2]
[426088131,1782141041000,-90057.9987807,0.00020275,2]
[426088136,1782141041000,-150.0,0.00020333,2]
[426088133,1782141041000,-540.50544414,0.00020309,2]
[426088146,1782141041000,-151.0,0.00020529,2]
[426088135,1782141041000,-150.0,0.00020333,2]
[426088134,1782141041000,-151.0,0.00020309,2]
[426088215,1782141042000,-785.0,0.00021603,2]
[426088206,1782141042000,-501.0,0.00021237,3]
[426088210,1782141042000,-422.3697271,0.000214,2]
[426088204,1782141042000,-1688.17606818,0.00021174,7]
[426088208,1782141042000,-242.0,0.00021328,2]
[426088209,1782141042000,-478.0,0.00021369,2]
[426088212,1782141042000,-500.0,0.0002149,2]
[426088211,1782141042000,-151.0,0.00021404,2]
[426088213,1782141042000,-150.0,0.00021542,2]
[426088202,1782141042000,-151.0,0.0002113,2]
[426088207,1782141042000,-785.0,0.00021271,2]
[426088216,1782141042000,-1664.17,0.00021616,2]
[426088218,1782141042000,-158.27328422,0.00021678,2]
[426088220,1782141042000,-200.0,0.00021678,2]
[426088221,1782141042000,-194.72792766,0.00021678,2]
[426088219,1782141042000,-151.0,0.00021678,2]
[426088217,1782141042000,-412.43236871,0.00021678,2]
[426088222,1782141042000,-157.20749069,0.00021678,2]
[426088224,1782141042000,-2157.14243826,0.00021678,2]
[426088227,1782141042000,-906.04900202,0.00021678,2]
[426088228,1782141042000,-483.21,0.0002185,2]
[426088205,1782141042000,-422.3697271,0.000212,2]
[426088223,1782141042000,-151.0,0.00021678,2]
[426088214,1782141042000,-422.3697271,0.000216,2]
[426088200,1782141042000,-209.40437684,0.0002113,2]
[426088189,1782141042000,-1288.0,0.00021,2]
[426088203,1782141042000,-906.04900202,0.0002113,2]
[426088230,1782141042000,-422.3697271,0.000219,2]
[426088177,1782141042000,-500.0,0.00020864,2]
[426088176,1782141042000,-151.0,0.00020856,2]
[426088178,1782141042000,-785.0,0.00020939,2]
[426088180,1782141042000,-422.3697271,0.00021,2]
[426088179,1782141042000,-373.0,0.00021,2]
[426088181,1782141042000,-171.0,0.00021,2]
[426088182,1782141042000,-4589.0,0.00021,2]
[426088183,1782141042000,-558.41,0.00021,2]
[426088185,1782141042000,-227.0,0.00021,2]
[426088188,1782141042000,-1170.0,0.00021,2]
[426088201,1782141042000,-169.93046447,0.0002113,2]
[426088186,1782141042000,-197.0,0.00021,2]
[426088184,1782141042000,-2674.0,0.00021,2]
[426088190,1782141042000,-158.0,0.00021,2]
[426088197,1782141042000,-151.0,0.0002113,2]
[426088192,1782141042000,-412.43236871,0.0002113,2]
[426088198,1782141042000,-157.20749069,0.0002113,2]
[426088193,1782141042000,-158.27328414,0.0002113,2]
[426088194,1782141042000,-151.0,0.0002113,2]
[426088195,1782141042000,-200.0,0.0002113,2]
[426088191,1782141042000,-201.0,0.00021095,2]
[426088196,1782141042000,-187.78006524,0.0002113,2]
[426088199,1782141042000,-2080.17592889,0.0002113,2]
[426088187,1782141042000,-166.15358353,0.00021,2]
[426088229,1782141042000,-501.0,0.00021856,3]
[426088231,1782141042000,-5000.0,0.00021918,2]
[426088225,1782141042000,-217.15233878,0.00021678,2]
[426088268,1782141042000,-188.39780811,0.000224,4]
[426088265,1782141042000,-154.89,0.00022312,2]
[426088267,1782141042000,-964.64755062,0.000224,2]
[426088262,1782141042000,-906.04900202,0.00022226,2]
[426088263,1782141042000,-151.0,0.00022226,2]
[426088264,1782141042000,-785.0,0.00022268,2]
[426088266,1782141042000,-714.6,0.00022353,2]
[426088269,1782141042000,-501.0,0.00022474,4]
[426088271,1782141042000,-558.41,0.000225,7]
[426088272,1782141042000,-151.0,0.000225,2]
[426088270,1782141042000,-36205.09698188,0.000225,2]
[426088259,1782141042000,-2236.95670847,0.00022226,2]
[426088277,1782141042000,-1013.42404431,0.00022673,2]
[426088274,1782141042000,-785.0,0.000226,2]
[426088275,1782141042000,-235.92555944,0.00022602,2]
[426088281,1782141042000,-182.81288667,0.0002271,2]
[426088276,1782141042000,-202.4,0.00022603,2]
[426088279,1782141042000,-533.76605895,0.0002271,2]
[426088282,1782141042000,-599.60298507,0.00022773,2]
[426088283,1782141042000,-695.39793187,0.00022773,2]
[426088287,1782141042000,-209.40437684,0.00022774,2]
[426088286,1782141042000,-200.0,0.00022774,2]
[426088285,1782141042000,-151.0,0.00022774,2]
[426088232,1782141042000,-785.0,0.00021936,2]
[426088273,1782141042000,-150.0,0.0002254,2]
[426088261,1782141042000,-225.18697532,0.00022226,2]
[426088284,1782141042000,-412.43236871,0.00022774,2]
[426088258,1782141042000,-151.0,0.00022226,2]
[426088257,1782141042000,-157.20749069,0.00022226,2]
[426088226,1782141042000,-151.0,0.00021678,2]
[426088235,1782141042000,-373.0,0.00022,2]
[426088234,1782141042000,-450.0,0.00022,2]
[426088236,1782141042000,-171.0,0.00022,2]
[426088240,1782141042000,-227.0,0.00022,2]
[426088243,1782141042000,-1288.0,0.00022,2]
[426088238,1782141042000,-2213.44721922,0.00022,2]
[426088244,1782141042000,-39935.0,0.00022,2]
[426088239,1782141042000,-4921.0,0.00022,2]
[426088242,1782141042000,-1170.0,0.00022,2]
[426088241,1782141042000,-197.0,0.00022,2]
[426088233,1782141042000,-151.0,0.00021952,2]
[426088245,1782141042000,-158.0,0.00022,2]
[426088248,1782141042000,-500.0,0.00022134,2]
[426088247,1782141042000,-244.96425062,0.0002211,2]
[426088249,1782141042000,-200.0,0.00022183,2]
[426088250,1782141042000,-478.0,0.00022191,2]
[426088251,1782141042000,-500.0,0.00022219,2]
[426088252,1782141042000,-412.43236871,0.00022226,2]
[426088246,1782141042000,-2475.39,0.00022,2]
[426088256,1782141042000,-201.93286098,0.00022226,2]
[426088254,1782141042000,-151.0,0.00022226,2]
[426088255,1782141042000,-200.0,0.00022226,2]
[426088237,1782141042000,-629.0,0.00022,2]
[426088323,1782141043000,-200.0,0.00023322,2]
[426088325,1782141043000,-157.20749069,0.00023322,2]
[426088328,1782141043000,-242.15909246,0.00023322,2]
[426088317,1782141043000,-448.38696378,0.000232,2]
[426088324,1782141043000,-217.15233878,0.00023322,2]
[426088321,1782141043000,-412.43236871,0.00023322,2]
[426088320,1782141043000,-500.0,0.00023288,2]
[426088319,1782141043000,-785.0,0.00023265,2]
[426088326,1782141043000,-2405.55389863,0.00023322,2]
[426088327,1782141043000,-151.0,0.00023322,2]
[426088333,1782141043000,-356.0,0.00023342,2]
[426088329,1782141043000,-906.04900202,0.00023322,2]
[426088334,1782141043000,-489.0,0.00023342,2]
[426088335,1782141043000,-160.46,0.00023425,2]
[426088330,1782141043000,-151.0,0.00023322,2]
[426088336,1782141043000,-295.31772502,0.00023432,2]
[426088331,1782141043000,-150.0,0.00023333,2]
[426088332,1782141043000,-150.0,0.00023333,2]
[426088337,1782141043000,-499.45360619,0.00023482,2]
[426088341,1782141043000,-1784.25,0.00023616,2]
[426088340,1782141043000,-785.0,0.00023598,2]
[426088318,1782141043000,-1664.17,0.00023232,7]
[426088322,1782141043000,-151.0,0.00023322,2]
[426088314,1782141043000,-236.31465493,0.00023113,2]
[426088305,1782141043000,-629.0,0.00023,2]
[426088312,1782141043000,-151.0,0.00023048,2]
[426088289,1782141043000,-151.0,0.00022774,2]
[426088288,1782141043000,-157.20749069,0.00022774,2]
[426088290,1782141043000,-2319.72410669,0.00022774,2]
[426088292,1782141043000,-906.04900202,0.00022774,2]
[426088291,1782141043000,-233.5188934,0.00022774,2]
[426088293,1782141043000,-151.0,0.00022774,2]
[426088296,1782141043000,-383.0,0.00022962,2]
[426088295,1782141043000,-785.0,0.00022933,2]
[426088294,1782141043000,-500.0,0.00022798,2]
[426088297,1782141043000,-1276.0,0.00022962,2]
[426088299,1782141043000,-1229.0,0.00022962,2]
[426088304,1782141043000,-171.0,0.00023,2]
[426088303,1782141043000,-373.0,0.00023,2]
[426088302,1782141043000,-216.0,0.00022962,2]
[426088301,1782141043000,-934.0,0.00022962,2]
[426088307,1782141043000,-227.0,0.00023,2]
[426088306,1782141043000,-6325.0,0.00023,2]
[426088309,1782141043000,-1170.0,0.00023,2]
[426088313,1782141043000,-501.0,0.00023093,4]
[426088310,1782141043000,-1288.0,0.00023,2]
[426088311,1782141043000,-158.0,0.00023,2]
[426088316,1782141043000,-778.0,0.00023165,7]
[426088308,1782141043000,-197.0,0.00023,2]
[426088315,1782141043000,-1003.16,0.00023118,2]
[426088339,1782141043000,-1765.77335329,0.000235,2]
[426088343,1782141043000,-150.0,0.00023667,2]
[426088353,1782141043000,-906.04900202,0.0002387,2]
[426088372,1782141043000,-154.89,0.00024029,2]
[426088373,1782141043000,-558.41,0.000241,7]
[426088375,1782141043000,-934.08,0.00024174,2]
[426088374,1782141043000,-3781.0,0.00024174,2]
[426088371,1782141043000,-178.500386,0.00024027,2]
[426088376,1782141043000,-2025.84,0.00024174,2]
[426088377,1782141043000,-52139.13,0.00024174,2]
[426088381,1782141043000,-10835.64216132,0.0002429,7]
[426088378,1782141043000,-2978.14269016,0.00024174,7]
[426088379,1782141043000,-3774.65181799,0.0002421,2]
[426088382,1782141043000,-160.0,0.000243,7]
[426088380,1782141043000,-785.0,0.00024262,2]
[426088383,1782141043000,-714.6,0.00024324,2]
[426088385,1782141043000,-412.43236871,0.00024418,2]
[426088384,1782141043000,-501.0,0.0002433,6]
[426088387,1782141043000,-200.0,0.00024418,2]
[426088386,1782141043000,-151.0,0.00024418,2]
[426088389,1782141043000,-2586.85809042,0.00024418,2]
[426088388,1782141043000,-233.5188934,0.00024418,2]
[426088390,1782141043000,-260.4103811,0.00024418,2]
[426088391,1782141043000,-906.04900202,0.00024418,2]
[426088393,1782141043000,-150.0,0.00024542,2]
[426088392,1782141043000,-151.0,0.00024418,2]
[426088370,1782141043000,-356.0,0.00024027,2]
[426088368,1782141043000,-1288.0,0.00024,2]
[426088338,1782141043000,-241.55080135,0.00023499,2]
[426088366,1782141043000,-197.0,0.00024,2]
[426088342,1782141043000,-200.0,0.00023621,2]
[426088346,1782141043000,-412.43236871,0.0002387,2]
[426088345,1782141043000,-170.92971999,0.00023849,2]
[426088348,1782141043000,-200.0,0.0002387,2]
[426088344,1782141043000,-501.0,0.00023711,5]
[426088352,1782141043000,-251.11897888,0.0002387,2]
[426088369,1782141043000,-158.0,0.00024,2]
[426088349,1782141043000,-225.18697532,0.0002387,2]
[426088351,1782141043000,-2494.55939288,0.0002387,2]
[426088347,1782141043000,-151.0,0.0002387,2]
[426088356,1782141043000,-500.0,0.00024,2]
[426088350,1782141043000,-157.20749071,0.0002387,2]
[426088357,1782141043000,-373.0,0.00024,2]
[426088358,1782141043000,-1042.99876031,0.00024,2]
[426088363,1782141043000,-11203.09467203,0.00024,2]
[426088360,1782141043000,-3600.0,0.00024,2]
[426088361,1782141043000,-150888.80083963,0.00024,2]
[426088364,1782141043000,-7500.0,0.00024,2]
[426088359,1782141043000,-171.0,0.00024,2]
[426088362,1782141043000,-1261.27451767,0.00024,2]
[426088355,1782141043000,-785.0,0.0002393,2]
[426088365,1782141043000,-227.0,0.00024,2]
[426088367,1782141043000,-1170.0,0.00024,2]
[426088354,1782141043000,-151.0,0.0002387,2]
[426088434,1782141044000,-3379.23091969,0.00025,2]
[426088433,1782141044000,-2242.72727385,0.00025,2]
[426088431,1782141044000,-50000.0,0.00025,10]
[426088435,1782141044000,-170.53466025,0.00025,2]
[426088429,1782141044000,-3888.0,0.00025,2]
[426088427,1782141044000,-622.51188444,0.00025,2]
[426088428,1782141044000,-3101.77430923,0.00025,2]
[426088425,1782141044000,-1819.18711919,0.00025,2]
[426088430,1782141044000,-7263.86191529,0.00025,2]
[426088432,1782141044000,-60294.26158838,0.00025,7]
[426088448,1782141044000,-354.01,0.00025,2]
[426088451,1782141044000,-354.01,0.00025,2]
[426088436,1782141044000,-630.61457372,0.00025,5]
[426088441,1782141044000,-199.58537308,0.00025,2]
[426088439,1782141044000,-216.35787048,0.00025,7]
[426088444,1782141044000,-354.01,0.00025,2]
[426088446,1782141044000,-354.01,0.00025,2]
[426088445,1782141044000,-354.01,0.00025,2]
[426088442,1782141044000,-1176.18926434,0.00025,2]
[426088438,1782141044000,-1006.45941507,0.00025,2]
[426088443,1782141044000,-1289.36283729,0.00025,2]
[426088440,1782141044000,-228.91209571,0.00025,2]
[426088426,1782141044000,-540.0,0.00025,2]
[426088447,1782141044000,-354.01,0.00025,2]
[426088424,1782141044000,-211.47667006,0.00025,2]
[426088400,1782141044000,-1000.0,0.00024658,2]
[426088418,1782141044000,-270.0455652,0.00024966,2]
[426088396,1782141044000,-980.68,0.00024658,2]
[426088397,1782141044000,-158.843375,0.00024658,2]
[426088394,1782141044000,-785.0,0.00024595,2]
[426088395,1782141044000,-2475.39,0.00024629,7]
[426088398,1782141044000,-151.0,0.00024658,2]
[426088399,1782141044000,-220.769833,0.00024658,2]
[426088404,1782141044000,-6027.9318,0.00024674,7]
[426088402,1782141044000,-4455.12335347,0.00024674,7]
[426088410,1782141044000,-150.0,0.0002485,2]
[426088411,1782141044000,-785.0,0.00024927,2]
[426088406,1782141044000,-150.0,0.000247,2]
[426088409,1782141044000,-1063.30295724,0.0002485,2]
[426088412,1782141044000,-501.0,0.00024948,6]
[426088407,1782141044000,-356.0,0.00024712,2]
[426088408,1782141044000,-1664.17,0.00024848,7]
[426088452,1782141044000,-354.01,0.00025,2]
[426088423,1782141044000,-173.51646338,0.00025,2]
[426088416,1782141044000,-242.15909246,0.00024966,2]
[426088422,1782141044000,-391.6976076,0.00025,2]
[426088415,1782141044000,-200.0,0.00024966,2]
[426088413,1782141044000,-412.43236871,0.00024966,2]
[426088414,1782141044000,-151.0,0.00024966,2]
[426088417,1782141044000,-2682.57183977,0.00024966,2]
[426088420,1782141044000,-906.04900202,0.00024966,2]
[426088421,1782141044000,-1784.25,0.00024986,2]
[426088419,1782141044000,-151.0,0.00024966,2]
[426088449,1782141044000,-354.01,0.00025,2]
[426088437,1782141044000,-4884.54048851,0.00025,2]
[426088454,1782141044000,-169.78520518,0.00025,2]
[426088487,1782141044000,-906.04900202,0.00025514,2]
[426088485,1782141044000,-280.03725111,0.00025514,2]
[426088486,1782141044000,-151.0,0.00025514,2]
[426088490,1782141044000,-170.91405635,0.00025539,2]
[426088488,1782141044000,-158.80564148,0.00025539,2]
[426088491,1782141044000,-189.78292624,0.00025541,2]
[426088489,1782141044000,-170.08976848,0.00025539,2]
[426088483,1782141044000,-251.11897888,0.00025514,2]
[426088492,1782141044000,-196.03519225,0.00025541,2]
[426088494,1782141044000,-177.31819053,0.00025541,2]
[426088493,1782141044000,-200.96527118,0.00025541,2]
[426088503,1782141044000,-202.4,0.00025548,2]
[426088484,1782141044000,-2781.82699784,0.00025514,2]
[426088499,1782141044000,-218.55083892,0.00025541,2]
[426088500,1782141044000,-175.55783824,0.00025541,2]
[426088496,1782141044000,-164.68548095,0.00025541,2]
[426088501,1782141044000,-166.20179216,0.00025541,2]
[426088497,1782141044000,-158.45858651,0.00025541,2]
[426088502,1782141044000,-159.54773013,0.00025541,2]
[426088498,1782141044000,-184.31693168,0.00025541,2]
[426088505,1782141044000,-785.0,0.00025592,2]
[426088504,1782141044000,-501.0,0.00025567,7]
[426088506,1782141044000,-200.0,0.00025712,2]
[426088507,1782141044000,-154.89,0.00025745,2]